fUST/lending_fUST_20250516
["ID","MTS","AMOUNT","RATE_DAILY","PERIOD"]
[361245930,1747389053495,-1000.0,0.00014221,2]
[361245931,1747389053505,-1000.0,0.00014221,2]
[361245932,1747389053514,-1000.0,0.00014221,2]
[361245933,1747389053523,-1000.0,0.00014221,2]
[361245934,1747389053533,-1000.0,0.00014221,2]
[361245935,1747389053543,-1000.0,0.00014221,2]
[361245936,1747389053552,-151.0,0.00014221,2]
[361245937,1747389053561,-15049.39405921,0.00014245,2]
[361245938,1747389053570,-205.0,0.00014246,2]
[361245939,1747389053581,-205.0,0.00014246,2]
[361245940,1747389053591,-205.0,0.00014246,2]
[361245941,1747389053600,-205.0,0.00014246,2]
[361245942,1747389053609,-205.0,0.00014246,2]
[361245943,1747389053618,-205.0,0.00014246,2]
[361245944,1747389053627,-205.0,0.00014246,2]
[361245945,1747389053637,-450.0,0.00014246,2]
[361245946,1747389053646,-957.23,0.00014246,2]
[361245947,1747389053655,-450.0,0.00014246,2]
[361245948,1747389053664,-481.06959829,0.00014246,2]
[361245949,1747389053673,-151.0,0.00014246,2]
[361245950,1747389053683,-450.0,0.00014246,2]
[361245951,1747389053693,-450.0,0.00014246,2]
[361245952,1747389053702,-450.0,0.00014246,2]
[361245953,1747389053712,-450.0,0.00014246,2]
[361245954,1747389053721,-151.0,0.00014246,2]
[361245955,1747389053730,-151.0,0.00014246,2]
[361245956,1747389053739,-450.0,0.00014246,2]
[361245957,1747389053749,-450.0,0.00014246,2]
[361245958,1747389053758,-745.91,0.00014246,2]
[361245959,1747389053767,-469.97,0.00014246,2]
[361245960,1747389053776,-450.0,0.00014246,2]
[361245961,1747389053785,-875.77,0.00014246,2]
[361245962,1747389053795,-151.0,0.00014246,2]
[361245963,1747389053804,-450.0,0.00014246,2]
[361245964,1747389053813,-450.0,0.00014246,2]
[361245965,1747389053822,-557.53,0.00014246,2]
[361245966,1747389053831,-450.0,0.00014246,2]
[361245967,1747389053840,-450.0,0.00014246,2]
[361245968,1747389053850,-800.13,0.00014246,2]
[361245969,1747389053859,-2054.04,0.00014246,2]
[361245970,1747389053868,-450.0,0.00014246,2]
[361245971,1747389053878,-450.0,0.00014246,2]
[361245972,1747389053887,-1073.35,0.00014246,2]
[361245973,1747389053899,-3615.09,0.00014246,2]
[361245974,1747389053908,-898.38,0.00014246,2]
[361245975,1747389053917,-890.09,0.00014246,2]
[361245976,1747389053926,-1090.26,0.00014246,2]
[361245977,1747389053936,-450.0,0.00014246,2]
[361245978,1747389053945,-450.0,0.00014246,2]
[361245979,1747389053955,-450.0,0.00014246,2]
[361245980,1747389053964,-450.0,0.00014246,2]
[361245981,1747389053974,-6142.77,0.00014246,2]
[361245982,1747389053984,-632.43,0.00014246,2]
[361245983,1747389053994,-722.65,0.00014246,2]
[361245984,1747389054003,-3231.47,0.00014246,2]
[361245985,1747389054013,-450.0,0.00014246,2]
[361245986,1747389054023,-2585.15,0.00014246,2]
[361245987,1747389054032,-1250.34,0.00014246,2]
[361245988,1747389054042,-450.0,0.00014246,2]
[361245989,1747389054062,-450.0,0.00014246,2]
[361245990,1747389054073,-450.0,0.00014246,2]
[361245991,1747389054083,-5477.61,0.00014246,2]
[361245992,1747389054092,-450.0,0.00014246,2]
[361245993,1747389054103,-508.61,0.00014246,2]
[361245994,1747389054113,-450.0,0.00014246,2]
[361245995,1747389054123,-257.08283724,0.00014246,2]
[361245996,1747389054133,-507.61,0.00014246,2]
[361245997,1747389054143,-837.01,0.00014246,2]
[361245998,1747389054153,-2224.75,0.00014246,2]
[361245999,1747389054163,-450.0,0.00014246,2]
[361246000,1747389054173,-493.99,0.00014246,2]
[361246001,1747389054183,-7686.99,0.00014246,2]
[361246002,1747389054194,-450.0,0.00014246,2]
[361246003,1747389054204,-601.19,0.00014246,2]
[361246004,1747389054213,-450.0,0.00014246,2]
[361246005,1747389054223,-450.0,0.00014246,2]
[361246006,1747389054233,-450.0,0.00014246,2]
[361246007,1747389054244,-475.32,0.00014246,2]
[361246008,1747389054256,-450.0,0.00014246,2]
[361246009,1747389054266,-690.24,0.00014246,2]
[361246010,1747389054276,-1182.69,0.00014246,2]
[361246012,1747389054286,-450.0,0.00014246,2]
[361246014,1747389054295,-482.92,0.00014246,2]
[361246016,1747389054304,-588.67,0.00014246,2]
[361246017,1747389054314,-450.0,0.00014246,2]
[361246019,1747389054323,-976.59,0.00014246,2]
[361246021,1747389054333,-590.57,0.00014246,2]
[361246022,1747389054344,-369.83367174,0.00014246,2]
[361246024,1747389054354,-2475.12,0.00014246,2]
[361246025,1747389054365,-450.0,0.00014246,2]
[361246026,1747389054375,-762.6,0.00014246,2]
[361246027,1747389054384,-160.797432,0.00014246,2]
[361246028,1747389054395,-450.0,0.00014246,2]
[361246029,1747389054404,-1913.0,0.00014246,2]
[361246030,1747389054414,-151.0,0.00014246,2]
[361246031,1747389054423,-927.25,0.00014246,2]
[361246032,1747389054434,-178.285172,0.00014246,2]
[361246033,1747389054443,-450.0,0.00014246,2]
[361246034,1747389054453,-450.0,0.00014246,2]
[361246035,1747389054462,-451.32,0.00014246,2]
[361246036,1747389054472,-1559.43,0.00014246,2]
[361246037,1747389054482,-704.07,0.00014246,2]
[361246038,1747389054492,-450.0,0.00014246,2]
[361246039,1747389054502,-164.40955094,0.00014246,2]
[361246040,1747389054512,-450.0,0.00014246,2]
[361246041,1747389054522,-1565.56,0.00014246,2]
[361246042,1747389054531,-494.64,0.00014246,2]
[361246043,1747389054541,-1228.32,0.00014246,2]
[361246044,1747389054550,-734.66,0.00014246,2]
[361246045,1747389054560,-450.0,0.00014246,2]
[361246046,1747389054569,-450.0,0.00014246,2]
[361246047,1747389054579,-450.0,0.00014246,2]
[361246048,1747389054589,-450.0,0.00014246,2]
[361246049,1747389054599,-2628.47,0.00014246,2]
[361246050,1747389054609,-748.28,0.00014246,2]
[361246051,1747389054618,-580.05,0.00014246,2]
[361246052,1747389054628,-450.0,0.00014246,2]
[361246053,1747389054638,-887.73,0.00014246,2]
[361246054,1747389054647,-450.0,0.00014246,2]
[361246055,1747389054657,-467.75,0.00014246,2]
[361246056,1747389054666,-565.04,0.00014246,2]
[361246057,1747389054676,-954.48,0.00014246,2]
[361246058,1747389054686,-1314.33,0.00014246,2]
[361246059,1747389054696,-450.0,0.00014246,2]
[361246060,1747389054705,-1487.55,0.00014246,2]
[361246061,1747389054715,-1644.62,0.00014246,2]
[361246062,1747389054725,-450.0,0.00014246,2]
[361246063,1747389054735,-943.41,0.00014246,2]
[361246064,1747389054745,-242.554464,0.00014279,2]
[361246065,1747389054755,-151.0,0.000143,2]
[361246066,1747389054764,-151.0,0.00014348,2]
[361246067,1747389054774,-15049.39405921,0.00014348,2]
[361246068,1747389054784,-500.0,0.00014357,2]
[361246069,1747389054794,-500.0,0.00014357,2]
[361246070,1747389054804,-500.0,0.00014357,2]
[361246071,1747389054814,-500.0,0.0001438,2]
[361246072,1747389054823,-9450.86,0.0001438,5]
[361246073,1747389054833,-450.0,0.00014383,2]
[361246074,1747389054842,-957.23,0.00014383,2]
[361246075,1747389054852,-450.0,0.00014383,2]
[361246076,1747389054862,-450.0,0.00014383,2]
[361246077,1747389054872,-450.0,0.00014383,2]
[361246078,1747389054881,-450.0,0.00014383,2]
[361246080,1747389054890,-450.0,0.00014383,2]
[361246082,1747389054899,-151.0,0.00014383,2]
[361246083,1747389054908,-450.0,0.00014383,2]
[361246085,1747389054918,-450.0,0.00014383,2]
[361246086,1747389054928,-745.91,0.00014383,2]
[361246087,1747389054937,-469.97,0.00014383,2]
[361246089,1747389054948,-450.0,0.00014383,2]
[361246091,1747389054958,-875.77,0.00014383,2]
[361246092,1747389054968,-222.357992,0.00014383,2]
[361246093,1747389054978,-450.0,0.00014383,2]
[361246094,1747389054988,-450.0,0.00014383,2]
[361246095,1747389054998,-557.53,0.00014383,2]
[361246096,1747389055007,-450.0,0.00014383,2]
[361246097,1747389055017,-450.0,0.00014383,2]
[361246098,1747389055027,-800.13,0.00014383,2]
[361246100,1747389055036,-2054.04,0.00014383,2]
[361246101,1747389055046,-450.0,0.00014383,2]
[361246102,1747389055055,-450.0,0.00014383,2]
[361246103,1747389055065,-1073.35,0.00014383,2]
[361246104,1747389055075,-3615.09,0.00014383,2]
[361246105,1747389055084,-898.38,0.00014383,2]
[361246106,1747389055094,-890.09,0.00014383,2]
[361246107,1747389055103,-1090.26,0.00014383,2]
[361246108,1747389055113,-450.0,0.00014383,2]
[361246109,1747389055122,-450.0,0.00014383,2]
[361246110,1747389055132,-450.0,0.00014383,2]
[361246111,1747389055141,-595.35689397,0.00014383,2]
[361246112,1747389055150,-6142.77,0.00014383,2]
[361246113,1747389055160,-632.43,0.00014383,2]
[361246114,1747389055170,-722.65,0.00014383,2]
[361246115,1747389055179,-3231.47,0.00014383,2]
[361246116,1747389055188,-450.0,0.00014383,2]
[361246117,1747389055198,-2585.15,0.00014383,2]
[361246118,1747389055209,-1250.34,0.00014383,2]
[361246119,1747389055218,-450.0,0.00014383,2]
[361246120,1747389055228,-450.0,0.00014383,2]
[361246121,1747389055237,-450.0,0.00014383,2]
[361246122,1747389055248,-5477.61,0.00014383,2]
[361246123,1747389055257,-450.0,0.00014383,2]
[361246124,1747389055267,-508.61,0.00014383,2]
[361246125,1747389055277,-450.0,0.00014383,2]
[361246126,1747389055286,-507.61,0.00014383,2]
[361246127,1747389055297,-837.01,0.00014383,2]
[361246128,1747389055306,-2224.75,0.00014383,2]
[361246129,1747389055315,-450.0,0.00014383,2]
[361246130,1747389055326,-493.99,0.00014383,2]
[361246131,1747389055336,-7686.99,0.00014383,2]
[361246132,1747389055345,-450.0,0.00014383,2]
[361246133,1747389055355,-601.19,0.00014383,2]
[361246134,1747389055364,-450.0,0.00014383,2]
[361246135,1747389055374,-450.0,0.00014383,2]
[361246136,1747389055384,-450.0,0.00014383,2]
[361246137,1747389055394,-450.0,0.00014383,2]
[361246138,1747389055404,-690.24,0.00014383,2]
[361246139,1747389055413,-1182.69,0.00014383,2]
[361246140,1747389055423,-450.0,0.00014383,2]
[361246141,1747389055434,-482.92,0.00014383,2]
[361246142,1747389055443,-588.67,0.00014383,2]
[361246143,1747389055453,-450.0,0.00014383,2]
[361246144,1747389055463,-976.59,0.00014383,2]
[361246145,1747389055472,-590.57,0.00014383,2]
[361246146,1747389055482,-2475.12,0.00014383,2]
[361246147,1747389055491,-450.0,0.00014383,2]
[361246148,1747389055501,-762.6,0.00014383,2]
[361246149,1747389055511,-450.0,0.00014383,2]
[361246150,1747389055521,-1913.0,0.00014383,2]
[361246151,1747389055530,-151.0,0.00014383,2]
[361246152,1747389055539,-927.25,0.00014383,2]
[361246153,1747389055549,-425.87930323,0.00014383,2]
[361246154,1747389055558,-181.75529407,0.00014383,2]
[361246155,1747389055567,-451.32,0.00014383,2]
[361246156,1747389055577,-1559.43,0.00014383,2]
[361246157,1747389055586,-704.07,0.00014383,2]
[361246158,1747389055595,-450.0,0.00014383,2]
[361246159,1747389055605,-450.0,0.00014383,2]
[361246160,1747389055614,-1565.56,0.00014383,2]
[361246161,1747389055625,-494.64,0.00014383,2]
[361246162,1747389055636,-1228.32,0.00014383,2]
[361246163,1747389055646,-734.66,0.00014383,2]
[361246164,1747389055656,-450.0,0.00014383,2]
[361246165,1747389055665,-450.0,0.00014383,2]
[361246166,1747389055675,-450.0,0.00014383,2]
[361246167,1747389055685,-450.0,0.00014383,2]
[361246168,1747389055695,-2628.47,0.00014383,2]
[361246169,1747389055704,-748.28,0.00014383,2]
[361246170,1747389055714,-580.05,0.00014383,2]
[361246171,1747389055723,-335.55,0.00014383,2]
[361246172,1747389055733,-887.73,0.00014383,2]
[361246173,1747389055743,-450.0,0.00014383,2]
[361246174,1747389055753,-467.75,0.00014383,2]
[361246175,1747389055764,-565.04,0.00014383,2]
[361246176,1747389055774,-954.48,0.00014383,2]
[361246177,1747389055784,-1314.33,0.00014383,2]
[361246178,1747389055793,-450.0,0.00014383,2]
[361246179,1747389055802,-1487.55,0.00014383,2]
[361246180,1747389055812,-1644.62,0.00014383,2]
[361246181,1747389055822,-450.0,0.00014383,2]
[361246182,1747389055832,-943.41,0.00014383,2]
[361246183,1747389055841,-151.0,0.000144,2]
[361246184,1747389055851,-1000.0,0.00014421,2]
[361246185,1747389055860,-506.46803802,0.00014421,2]
[361246186,1747389055869,-1000.0,0.00014421,2]
[361246187,1747389055879,-1000.0,0.00014421,2]
[361246188,1747389055889,-1000.0,0.00014421,2]
[361246189,1747389055898,-500.88088065,0.00014421,2]
[361246190,1747389055907,-1000.0,0.00014421,2]
[361246191,1747389055916,-1001.49922648,0.00014421,2]
[361246192,1747389055925,-15049.39405921,0.00014452,2]
[361246193,1747389055935,-450.0,0.0001452,2]
[361246194,1747389055945,-957.23,0.0001452,2]
[361246195,1747389055955,-450.0,0.0001452,2]
[361246196,1747389055964,-450.0,0.0001452,2]
[361246197,1747389055973,-450.0,0.0001452,2]
[361246198,1747389055982,-450.0,0.0001452,2]
[361246199,1747389055992,-450.0,0.0001452,2]
[361246200,1747389056001,-151.0,0.0001452,2]
[361246201,1747389056012,-450.0,0.0001452,2]
[361246202,1747389056020,-450.0,0.0001452,2]
[361246203,1747389056030,-745.91,0.0001452,2]
[361246204,1747389056039,-469.97,0.0001452,2]
[361246205,1747389056049,-450.0,0.0001452,2]
[361246206,1747389056059,-875.77,0.0001452,2]
[361246207,1747389056069,-450.0,0.0001452,2]
[361246208,1747389056078,-450.0,0.0001452,2]
[361246209,1747389056087,-557.53,0.0001452,2]
[361246210,1747389056238,-450.0,0.0001452,2]
[361246211,1747389056263,-450.0,0.0001452,2]
[361246212,1747389056272,-800.13,0.0001452,2]
[361246213,1747389056282,-2054.04,0.0001452,2]
[361246214,1747389056292,-367.10176042,0.0001452,2]
[361246215,1747389056301,-260.22774162,0.0001452,2]
[361246216,1747389056311,-1073.35,0.0001452,2]
[361246217,1747389056319,-3615.09,0.0001452,2]
[361246218,1747389056329,-898.38,0.0001452,2]
[361246219,1747389056339,-890.09,0.0001452,2]
[361246220,1747389056348,-1090.26,0.0001452,2]
[361246221,1747389056358,-450.0,0.0001452,2]
[361246222,1747389056367,-450.0,0.0001452,2]
[361246223,1747389056377,-450.0,0.0001452,2]
[361246224,1747389056386,-6142.77,0.0001452,2]
[361246225,1747389056396,-632.43,0.0001452,2]
[361246226,1747389056405,-722.65,0.0001452,2]
[361246227,1747389056415,-3231.47,0.0001452,2]
[361246228,1747389056424,-450.0,0.0001452,2]
[361246229,1747389056433,-2585.15,0.0001452,2]
[361246230,1747389056443,-1250.34,0.0001452,2]
[361246231,1747389056453,-450.0,0.0001452,2]
[361246232,1747389056462,-450.0,0.0001452,2]
[361246233,1747389056471,-450.0,0.0001452,2]
[361246234,1747389056481,-5477.61,0.0001452,2]
[361246235,1747389056490,-268.86103786,0.0001452,2]
[361246236,1747389056499,-508.61,0.0001452,2]
[361246237,1747389056508,-450.0,0.0001452,2]
[361246238,1747389056519,-507.61,0.0001452,2]
[361246239,1747389056528,-837.01,0.0001452,2]
[361246240,1747389056537,-2224.75,0.0001452,2]
[361246241,1747389056546,-450.0,0.0001452,2]
[361246242,1747389056555,-493.99,0.0001452,2]
[361246243,1747389056565,-7686.99,0.0001452,2]
[361246244,1747389056574,-450.0,0.0001452,2]
[361246245,1747389056583,-601.19,0.0001452,2]
[361246246,1747389056592,-450.0,0.0001452,2]
[361246247,1747389056601,-450.0,0.0001452,2]
[361246248,1747389056612,-450.0,0.0001452,2]
[361246249,1747389056621,-450.0,0.0001452,2]
[361246250,1747389056630,-690.24,0.0001452,2]
[361246251,1747389056639,-1182.69,0.0001452,2]
[361246252,1747389056648,-450.0,0.0001452,2]
[361246253,1747389056658,-482.92,0.0001452,2]
[361246254,1747389056667,-588.67,0.0001452,2]
[361246255,1747389056676,-450.0,0.0001452,2]
[361246256,1747389056685,-976.59,0.0001452,2]
[361246257,1747389056694,-590.57,0.0001452,2]
[361246258,1747389056704,-2475.12,0.0001452,2]
[361246259,1747389056713,-450.0,0.0001452,2]
[361246260,1747389056723,-762.6,0.0001452,2]
[361246261,1747389056732,-450.0,0.0001452,2]
[361246262,1747389056741,-1913.0,0.0001452,2]
[361246263,1747389056751,-927.25,0.0001452,2]
[361246264,1747389056760,-451.32,0.0001452,2]
[361246265,1747389056770,-1559.43,0.0001452,2]
[361246266,1747389056779,-704.07,0.0001452,2]
[361246267,1747389056788,-450.0,0.0001452,2]
[361246268,1747389056797,-450.0,0.0001452,2]
[361246269,1747389056807,-1565.56,0.0001452,2]
[361246270,1747389056816,-494.64,0.0001452,2]
[361246271,1747389056825,-1228.32,0.0001452,2]
[361246272,1747389056834,-734.66,0.0001452,2]
[361246273,1747389056844,-450.0,0.0001452,2]
[361246274,1747389056853,-450.0,0.0001452,2]
[361246275,1747389056863,-450.0,0.0001452,2]
[361246276,1747389056872,-450.0,0.0001452,2]
[361246277,1747389056881,-2628.47,0.0001452,2]
[361246278,1747389056890,-748.28,0.0001452,2]
[361246279,1747389056900,-580.05,0.0001452,2]
[361246280,1747389056909,-887.73,0.0001452,2]
[361246281,1747389056919,-450.0,0.0001452,2]
[361246282,1747389056928,-467.75,0.0001452,2]
[361246283,1747389056937,-565.04,0.0001452,2]
[361246284,1747389056946,-954.48,0.0001452,2]
[361246285,1747389056955,-1314.33,0.0001452,2]
[361246286,1747389056964,-450.0,0.0001452,2]
[361246287,1747389056974,-1487.55,0.0001452,2]
[361246288,1747389056983,-1644.62,0.0001452,2]
[361246289,1747389056992,-450.0,0.0001452,2]
[361246290,1747389057001,-943.41,0.0001452,2]
[361246291,1747389057010,-15049.39405921,0.00014555,2]
[361246292,1747389057019,-1000.0,0.00014599,3]
[361246293,1747389057029,-215.0738,0.00014605,2]
[361246294,1747389057038,-450.0,0.00014657,2]
[361246295,1747389057047,-957.23,0.00014657,2]
[361246296,1747389057056,-450.0,0.00014657,2]
[361246297,1747389057065,-450.0,0.00014657,2]
[361246298,1747389057075,-450.0,0.00014657,2]
[361246299,1747389057084,-450.0,0.00014657,2]
[361246300,1747389057093,-450.0,0.00014657,2]
[361246301,1747389057103,-500.14917104,0.00014657,2]
[361246302,1747389057111,-450.0,0.00014657,2]
[361246303,1747389057121,-745.91,0.00014657,2]
[361246304,1747389057129,-469.97,0.00014657,2]
[361246305,1747389057139,-450.0,0.00014657,2]
[361246306,1747389057148,-875.77,0.00014657,2]
[361246307,1747389057157,-450.0,0.00014657,2]
[361246308,1747389057167,-450.0,0.00014657,2]
[361246309,1747389057176,-557.53,0.00014657,2]
[361246310,1747389057186,-532.5852142,0.00014657,2]
[361246311,1747389057195,-450.0,0.00014657,2]
[361246312,1747389057204,-800.13,0.00014657,2]
[361246313,1747389057214,-2054.04,0.00014657,2]
[361246314,1747389057224,-1073.35,0.00014657,2]
[361246315,1747389057233,-898.38,0.00014657,2]
[361246316,1747389057243,-3615.09,0.00014657,2]
[361246317,1747389057256,-890.09,0.00014657,2]
[361246318,1747389057265,-1090.26,0.00014657,2]
[361246319,1747389057274,-450.0,0.00014657,2]
[361246320,1747389057283,-450.0,0.00014657,2]
[361246321,1747389057293,-450.0,0.00014657,2]
[361246322,1747389057303,-6142.77,0.00014657,2]
[361246323,1747389057312,-632.43,0.00014657,2]
[361246324,1747389057323,-722.65,0.00014657,2]
[361246325,1747389057333,-3231.47,0.00014657,2]
[361246326,1747389057342,-450.0,0.00014657,2]
[361246327,1747389057352,-2585.15,0.00014657,2]
[361246328,1747389057361,-1250.34,0.00014657,2]
[361246329,1747389057371,-450.0,0.00014657,2]
[361246330,1747389057380,-450.0,0.00014657,2]
[361246331,1747389057389,-450.0,0.00014657,2]
[361246332,1747389057399,-5477.61,0.00014657,2]
[361246333,1747389057408,-508.61,0.00014657,2]
[361246334,1747389057417,-450.0,0.00014657,2]
[361246335,1747389057426,-507.61,0.00014657,2]
[361246336,1747389057435,-837.01,0.00014657,2]
[361246337,1747389057445,-2224.75,0.00014657,2]
[361246338,1747389057454,-450.0,0.00014657,2]
[361246339,1747389057463,-493.99,0.00014657,2]
[361246340,1747389057473,-7686.99,0.00014657,2]
[361246341,1747389057482,-450.0,0.00014657,2]
[361246342,1747389057491,-601.19,0.00014657,2]
[361246343,1747389057501,-450.0,0.00014657,2]
[361246344,1747389057510,-450.0,0.00014657,2]
[361246345,1747389057519,-450.0,0.00014657,2]
[361246346,1747389057528,-450.0,0.00014657,2]
[361246347,1747389057538,-690.24,0.00014657,2]
[361246348,1747389057546,-1182.69,0.00014657,2]
[361246349,1747389057556,-450.0,0.00014657,2]
[361246350,1747389057566,-482.92,0.00014657,2]
[361246351,1747389057575,-588.67,0.00014657,2]
[361246352,1747389057584,-450.0,0.00014657,2]
[361246353,1747389057594,-976.59,0.00014657,2]
[361246354,1747389057603,-590.57,0.00014657,2]
[361246355,1747389057612,-2475.12,0.00014657,2]
[361246356,1747389057622,-450.0,0.00014657,2]
[361246357,1747389057631,-762.6,0.00014657,2]
[361246358,1747389057641,-450.0,0.00014657,2]
[361246359,1747389057650,-1913.0,0.00014657,2]
[361246360,1747389057659,-927.25,0.00014657,2]
[361246361,1747389057669,-451.32,0.00014657,2]
[361246362,1747389057679,-1559.43,0.00014657,2]
[361246363,1747389057689,-704.07,0.00014657,2]
[361246364,1747389057699,-450.0,0.00014657,2]
[361246365,1747389057708,-450.0,0.00014657,2]
[361246366,1747389057718,-1565.56,0.00014657,2]
[361246367,1747389057727,-494.64,0.00014657,2]
[361246368,1747389057736,-1228.32,0.00014657,2]
[361246369,1747389057745,-734.66,0.00014657,2]
[361246370,1747389057754,-450.0,0.00014657,2]
[361246371,1747389057763,-450.0,0.00014657,2]
[361246372,1747389057773,-450.0,0.00014657,2]
[361246373,1747389057782,-450.0,0.00014657,2]
[361246374,1747389057796,-2628.47,0.00014657,2]
[361246375,1747389057806,-748.28,0.00014657,2]
[361246376,1747389057816,-580.05,0.00014657,2]
[361246377,1747389057825,-887.73,0.00014657,2]
[361246378,1747389057835,-450.0,0.00014657,2]
[361246379,1747389057844,-467.75,0.00014657,2]
[361246380,1747389057854,-565.04,0.00014657,2]
[361246381,1747389057863,-954.48,0.00014657,2]
[361246382,1747389057873,-1314.33,0.00014657,2]
[361246383,1747389057883,-450.0,0.00014657,2]
[361246384,1747389057892,-1487.55,0.00014657,2]
[361246385,1747389057902,-1644.62,0.00014657,2]
[361246386,1747389057911,-450.0,0.00014657,2]
[361246387,1747389057921,-943.41,0.00014657,2]
[361246388,1747389057931,-15049.39405921,0.00014659,2]
[361246389,1747389057940,-15049.39405921,0.00014762,2]
[361246390,1747389057950,-6717.94933703,0.00014765,2]
[361246391,1747389057960,-1500.0,0.00014768,2]
[361246392,1747389057970,-1346.66237562,0.00014768,2]
[361246393,1747389057979,-235.65504424,0.00014768,2]
[361246394,1747389057989,-1500.0,0.00014768,2]
[361246395,1747389057998,-568.86813041,0.00014768,2]
[361246396,1747389058008,-511.69255546,0.00014768,2]
[361246397,1747389058016,-1500.0,0.00014768,2]
[361246398,1747389058026,-1358.62764625,0.00014768,2]
[361246399,1747389058035,-1500.0,0.00014768,2]
[361246400,1747389058044,-450.0,0.00014794,2]
[361246401,1747389058054,-957.23,0.00014794,2]
[361246402,1747389058063,-450.0,0.00014794,2]
[361246403,1747389058072,-450.0,0.00014794,2]
[361246404,1747389058081,-450.0,0.00014794,2]
[361246405,1747389058091,-450.0,0.00014794,2]
[361246406,1747389058100,-450.0,0.00014794,2]
[361246407,1747389058109,-450.0,0.00014794,2]
[361246408,1747389058119,-745.91,0.00014794,2]
[361246409,1747389058128,-469.97,0.00014794,2]
[361246410,1747389058138,-450.0,0.00014794,2]
[361246411,1747389058148,-875.77,0.00014794,2]
[361246412,1747389058157,-450.0,0.00014794,2]
[361246413,1747389058167,-450.0,0.00014794,2]
[361246414,1747389058176,-557.53,0.00014794,2]
[361246415,1747389058185,-450.0,0.00014794,2]
[361246416,1747389058195,-800.13,0.00014794,2]
[361246417,1747389058205,-2054.04,0.00014794,2]
[361246418,1747389058215,-1073.35,0.00014794,2]
[361246419,1747389058225,-898.38,0.00014794,2]
[361246420,1747389058234,-3615.09,0.00014794,2]
[361246421,1747389058244,-890.09,0.00014794,2]
[361246422,1747389058258,-1090.26,0.00014794,2]
[361246423,1747389058267,-450.0,0.00014794,2]
[361246424,1747389058277,-450.0,0.00014794,2]
[361246425,1747389058286,-450.0,0.00014794,2]
[361246426,1747389058296,-6142.77,0.00014794,2]
[361246427,1747389058305,-632.43,0.00014794,2]
[361246428,1747389058315,-722.65,0.00014794,2]
[361246429,1747389058324,-3231.47,0.00014794,2]
[361246430,1747389058334,-450.0,0.00014794,2]
[361246431,1747389058344,-2585.15,0.00014794,2]
[361246432,1747389058354,-1250.34,0.00014794,2]
[361246433,1747389058363,-450.0,0.00014794,2]
[361246434,1747389058373,-450.0,0.00014794,2]
[361246435,1747389058383,-450.0,0.00014794,2]
[361246436,1747389058392,-5477.61,0.00014794,2]
[361246437,1747389058401,-508.61,0.00014794,2]
[361246438,1747389058411,-450.0,0.00014794,2]
[361246439,1747389058420,-507.61,0.00014794,2]
[361246440,1747389058429,-837.01,0.00014794,2]
[361246441,1747389058438,-2224.75,0.00014794,2]